Workbook

Sheet Ciclo-Gas
A1: CICLO GAS
B4: To [K] | C4: 298.15 | E4: Propiedades
E5: 1 | F5: 2 | G5: 3 | H5: 4 | I5: 5 | J5: 6 | K5: 7 | L5: 8 | M5: 9 | N5: 10 | O5: 11 | P5: 12 | Q5: Coeficientes Estequiométricos | S5: 13 | T5: 14 | U5: 15
A6: Name | B6: No. | C6: Formula | D6: Trange, K | E6: A | F6: B × 103 | G6: C × 105 | H6: D × 108 | I6: E × 1011 | J6: Tc (K) | K6: Pc (bar) | L6: Vc (cm3/mol) | M6: Zc | N6: ω | O6: Δhfo[kJ mol-1 ] | P6: Δgfo[kJ mol-1 ] | Q6: Reacción 1 | R6: Reacción 2 | S6: A | T6: B | U6: C
A7: Metano | B7: 26 | C7: CH4 | D7: 50-1000 | E7: 4.568 | F7: -8.975 | G7: 3.631 | H7: -3.407 | I7: 1.091 | J7: 190.56 | K7: 45.99 | L7: 98.6 | M7: 0.286 | N7: 0.011 | O7: -74.52 | P7: -50.45 | Q7: -1 | R7: 0 | S7: 3.7687 | T7: 395.744 | U7: 266.681
A8: Etano | B8: 65 | C8: C2H6 | D8: 50-1000 | E8: 4.178 | F8: -4.427 | G8: 5.66 | H8: -6.651 | I8: 2.487 | J8: 305.32 | K8: 48.72 | L8: 145.5 | M8: 0.279 | N8: 0.099 | O8: -83.82 | P8: -31.86 | Q8: 0 | R8: -1 | S8: 3.95405 | T8: 663.72 | U8: 256.681
A9: Agua | B9: 440 | C9: H2O | D9: 50-1000 | E9: 4.395 | F9: -4.186 | G9: 1.405 | H9: -1.564 | I9: 0.632 | J9: 647.14 | K9: 220.64 | L9: 55.95 | M9: 0.229 | N9: 0.344 | O9: -241.81 | P9: -228.42 | Q9: 2 | R9: 3 | S9: 5.11564 | T9: 1687.537 | U9: 230.17
A10: Dióxido de carbono | B10: 31 | C10: CO2 | D10: 50-1000 | E10: 3.259 | F10: 1.356 | G10: 1.502 | H10: -2.374 | I10: 1.056 | J10: 304.12 | K10: 73.74 | L10: 94.07 | M10: 0.274 | N10: 0.225 | O10: -393.51 | P10: -394.38 | Q10: 1 | R10: 2 | S10: 0 | T10: 0 | U10: 0
A11: Oxígeno | B11: 460 | C11: O2 | D11: 50-1000 | E11: 3.63 | F11: -1.794 | G11: 0.658 | H11: -0.601 | I11: 0.179 | J11: 154.58 | K11: 50.43 | L11: 73.37 | M11: 0.288 | N11: 0 | O11: 0 | P11: 0 | Q11: -2 | R11: -3.5 | S11: 3.81634 | T11: 319.013 | U11: 266.7
A12: Nitrógeno | B12: 455 | C12: N2 | D12: 50-1000 | E12: 3.539 | F12: -0.261 | G12: 0.007 | H12: 0.157 | I12: -0.099 | J12: 126.2 | K12: 33.98 | L12: 90.1 | M12: 0.289 | N12: 0.037 | O12: 0 | P12: 0 | Q12: 0 | R12: 0 | S12: 3.61947 | T12: 255.68 | U12: 266.55
B15: Aire (Corriente A) | E15: Combustible (corriente B)
B16: T [°C] | C16: 25 | E16: T [°C] | F16: 25 | H16: Conversión CH4 | I16: 100
B17: P[bar] | C17: 1 | E17: P[bar] | F17: 1 | H17: Conversión C2H6 | I17: 100
B18: %Exceso de aire | C18: 20 | E18: Base de cálculo[mol/h] | F18: =Resultados!D10*1000 -> 9774656.909
B19: yH2O | C19: 0 | E19: CH4 | F19: 0.7981132075
B20: yO2 | C20: 0.21 | E20: C2H6 | F20: 0.06037735849
B21: yN2 | C21: 0.79 | E21: H2O | F21: 0
E22: CO2 | F22: 0.04716981132
E23: O2 | F23: 0
E24: N2 | F24: 0.09433962264
E25: M[kg/kgmol] | F25: 19.29811321
E26: v [m3/mol] | F26: =vgas_TP(F16+273.15,F17,F19:F24,E7:P12) -> 0.02478797531
E27: Caudal [m3/h] | F27: =F26*F18 -> 242293.9541
B29: ID | C29: Mezclador ( C ) | F29: Aire (Corriente E) | I29: Compresor (Corriente F)
C30: T [K] | D30: 298.15 | F30: T [°C] | G30: 298.15 | I30: T [°C] | J30: =Tgas_ps(J31,J32,J33:J38,E7:P12) -> 685.9253532
C31: P[bar] | D31: 1 | F31: P[bar] | G31: 1 | I31: P[bar] | J31: 20
B32: 1 | C32: y CH4 | D32: =Mezclador(B32,$C$16:$C$21,$F$16:$F$24) -> 0.0704496788 | F32: y CH4 | G32: 0 | I32: s [kJ mol -1 K-1] | J32: =G40 -> 0.004364079154
B33: 2 | C33: y C2H6 | D33: =Mezclador(B33,$C$16:$C$21,$F$16:$F$24) -> 0.005329526529 | F33: y C2H6 | G33: 0 | I33: y CH4 | J33: =G32 -> 0
B34: 3 | C34: y H2O | D34: 0 | F34: y H2O | G34: 0 | I34: y C2H6 | J34: 0
B35: 4 | C35: y CO2 | D35: 0.004163692601 | F35: y CO2 | G35: 0 | I35: y H2O | J35: 0
B36: 5 | C36: y O2 | D36: 0.1914632405 | F36: y O2 | G36: 0.21 | I36: y CO2 | J36: 0
B37: 6 | C37: y N2 | D37: 0.7285938615 | F37: y N2 | G37: 0.79 | I37: y O2 | J37: 0.21
B38: 7 | C38: Total [mol/h] | D38: 110735533.7 | F38: %Exceso de aire | G38: 377 | I38: y N2 | J38: 0.79
B39: 8 | C39: Aire teo [mol/h] | D39: 84134063.96 | F39: Total [mol/h] | G39: =(1+G38/100)*D39 -> 401319485.1 | I39: Total [mol/h] | J39: =G39 -> 401319485.1
F40: s [kJ mol -1 K-1] | G40: =smez(G30,G31,G32:G37,E7:P12) -> 0.004364079154 | I40: h [kJ mol -1] | J40: =hmez(J30,J31,J33:J38,E7:P12) -> 11.62167501
F41: h [kJ mol -1] | G41: =hmez(G30,G31,G32:G37,E7:P12) -> -0.006293955736 | I41: W [kJ/h] | J41: =(J40-G41)*J39 -> 4666530517
B45: ID | C45: Quemador (D) | F45: ID | G45: Mezclador ( G )
B46: 1 | C46: T f adiabática [K] | D46: =Quemador(B46,$D$30,$D$38,$I$16:$I$17,$D$32:$D$37,$E$7:$I$12,$O$7:$O$12,$Q$7:$R$12) -> 1914.375263 | G46: T [K] | H46: =Tgas_hp(H47,H48,H49:H54,E7:P12) -> 902.8379344
B47: 2 | C47: Error | D47: =Quemador(B47,$D$30,$D$38,$I$16:$I$17,$D$32:$D$37,$E$7:$I$12,$O$7:$O$12,$Q$7:$R$12) -> 1.907348633e-06 | F47: 1 | G47: P[bar] | H47: =MezcladorBMyE(F47,$J$30,$J$31,$J$39,$J$33:$J$38,$J$40,$D$63,$D$58,$D$55,$D$49:$D$54,$D$64) -> 20
B48: 3 | C48: Qmax [kJ / h] | D48: 7104519230 | F48: 2 | G48: h [kJ mol -1] | H48: =MezcladorBMyE(F48,$J$30,$J$31,$J$39,$J$33:$J$38,$J$40,$D$63,$D$58,$D$55,$D$49:$D$54,$D$64) -> 3.353021264
B49: 4 | C49: yCH4 | D49: 0 | F49: 3 | G49: y CH4 | H49: 0
B50: 5 | C50: yC2H6 | D50: 0 | F50: 4 | G50: y C2H6 | H50: 0
B51: 6 | C51: yH2O | D51: 0.1564709791 | F51: 5 | G51: y H2O | H51: 0.03390858976
B52: 7 | C52: yCO2 | D52: 0.08504579754 | F52: 6 | G52: y CO2 | H52: 0.01843014645
B53: 8 | C53: yO2 | D53: 0.03182573205 | F53: 7 | G53: y O2 | H53: 0.1713881233
B54: 9 | C54: yN2 | D54: 0.7266574913 | F54: 8 | G54: y N2 | H54: 0.7762731405
B55: 10 | C55: Total [mol/h] | D55: 111030617.6 | F55: 9 | G55: Total [mol/h] | H55: 512350102.8
G56: s [kJ mol -1 K-1] | H56: =smez(H46,H47,H49:H54,E7:P12) -> 0.01384473009
C57: To [K] | D57: 298.15
C58: P[bar] | D58: 1
C59: h entrada [kJ/mol] | D59: =hmez(D57,D58,D49:D54,E7:P12) -> -71.32491016 | F59: ID | G59: Turbina ( H )
G60: T [K] | H60: =Tgas_ps(H61,H62,H63:H68,E7:P12) -> 410.88547 | J60: Chimenea ( I )
C61: Eficiencia | D61: 70 | G61: P[bar] | H61: 1 | J61: T [K] | K61: =70+273.15 -> 343.15
C62: Qreal [kJ / h] | D62: =D61/100*D48 -> 4973163461 | G62: s [kJ mol -1 K-1] | H62: =H56 -> 0.01384473009 | J62: P[bar] | K62: 1
C63: Treal [K] | D63: =Economizador(D62,D58,D49:D54,D59,D55,E7:P12) -> 1548.992396 | G63: y CH4 | H63: =H49 -> 0 | J63: y CH4 | K63: =H63 -> 0
C64: hreal [kJ/mol] | D64: =hmez(D63,D58,D49:D54,E7:P12) -> -26.53397687 | G64: y C2H6 | H64: 0 | J64: y C2H6 | K64: =H64 -> 0
G65: y H2O | H65: 0.03390858976 | J65: y H2O | K65: 0.03390858976
G66: y CO2 | H66: 0.01843014645 | J66: y CO2 | K66: 0.01843014645
G67: y O2 | H67: 0.1713881233 | J67: y O2 | K67: 0.1713881233
G68: y N2 | H68: 0.7762731405 | J68: y N2 | K68: 0.7762731405
G69: Total [mol/h] | H69: 512350102.8 | J69: Total [mol/h] | K69: =H69 -> 512350102.8
G70: h [kJ mol -1] | H70: =hmez(H60,H61,H63:H68,E7:P12) -> -12.11412682 | J70: h [kJ mol -1] | K70: =hmez(K61,K62,K63:K68,E7:P12) -> -14.12965614
G71: W [kJ/h] | H71: =(H70-H48)*H69 -> -7924594908
G76: W neto [kJ/h] | H76: =H71+J41 -> -3258064391
G77: W neto [MW] | H77: =H76/3.6/10^6 -> -905.0178863
G80: Q neto [MW] | H80: =D48/3.6/10^6 -> 1973.477564
G82: Q chimenéa [kJ/h] | H82: =H69*(K70-H70) -> -1032656654

Sheet Ciclo-VaporAgua
A1: CICLO COMBINADO
B3: Eficiencia de la turbina: | D3: 1
C5: 1 | D5: 2 | E5: 3 | F5: 4 | G5: 5 | H5: 6 | I5: 7 | J5: 8 | K5: 9 | L5: 10 | M5: 11 | N5: 12
B6: P [bar] | C6: 85 | D6: =C6 -> 85 | E6: 20 | F6: 7 | G6: =F6 -> 7 | H6: 2 | I6: 1 | J6: =I6 -> 1 | K6: =H6 -> 2 | L6: =K6 -> 2 | M6: =E6 -> 20 | N6: =M6 -> 20
B7: T [°C] | C7: =T_ps(C6,C9) -> 213.576867 | D7: 450 | E7: =T_ps(E6,E9) -> 244.80029 | F7: =T_ps(F6,F9) -> 164.9527526 | G7: 450 | H7: =T_ps(H6,H9) -> 270.7996338 | I7: =T_ps(I6,I9) -> 188.8491937 | J7: =Tsat_p(J6) -> 99.60591861 | K7: =T_ps(K6,K9) -> 99.61539326 | L7: =Tsat_p(L6) -> 120.2115459 | M7: =T_ps(M6,M9) -> 120.3673107 | N7: =Tsat_p(N6) -> 212.3845353
B8: h [kJ/kg] | C8: =h_ps(C6,C9) -> 916.2228516 | D8: =h_pt(D6,D7) -> 3265.633475 | E8: =h_ps(E6,E9) -> 2889.809779 | F8: =h_ps(F6,F9) -> 2681.544254 | G8: =h_pt(G6,G7) -> 3375.084592 | H8: =h_ps(H6,H9) -> 3013.111742 | I8: =h_ps(I6,I9) -> 2853.449105 | J8: =hL_p(J6) -> 417.4364858 | K8: =h_ps(K6,K9) -> 417.5516264 | L8: =hL_p(L6) -> 504.6838455 | M8: =h_ps(M6,M9) -> 506.6094901 | N8: =hL_p(N6) -> 908.6218511
B9: s [kJ/kg/K] | C9: =N9 -> 2.447023908 | D9: =s_pT(D6,D7) -> 6.521627589 | E9: =D9 -> 6.521627589 | F9: =E9 -> 6.521627589 | G9: =s_pT(G6,G7) -> 7.78844063 | H9: =G9 -> 7.78844063 | I9: =H9 -> 7.78844063 | J9: =sL_p(J6) -> 1.302560174 | K9: =J9 -> 1.302560174 | L9: =sL_p(L6) -> 1.530098201 | M9: =L9 -> 1.530098201 | N9: =sL_p(N6) -> 2.447023908
B10: v [m3/kg] | C10: =v_ps(C6,C9) -> 0.001171449403 | D10: =v_pT(D6,D7) -> 0.03572615238 | E10: =v_ps(E6,E9) -> 0.1099372929 | F10: =v_ps(F6,F9) -> 0.2620844252 | G10: =v_pT(G6,G7) -> 0.4734843717 | H10: =v_ps(H6,H9) -> 1.247808078 | I10: =v_ps(I6,I9) -> 2.12015267 | J10: =vL_p(J6) -> 0.001043147839 | K10: =v_ps(K6,K9) -> 0.001043104293 | L10: =vL_p(L6) -> 0.001060518406 | M10: =v_ps(M6,M9) -> 0.001059649647 | N10: =vL_p(N6) -> 0.001176750244
B11: Tipo | C11: =IF(C9<C14,"Lcom",IF(C9>C13,"VSC","L-V")) -> Lcom | D11: =IF(D9<D14,"Lcom",IF(D9>D13,"VSC","L-V")) -> VSC | E11: =IF(E9<E14,"Lcom",IF(E9>E13,"VSC","L-V")) -> VSC | F11: =IF(F9<F14,"Lcom",IF(F9>F13,"VSC","L-V")) -> L-V | G11: VSC | H11: VSC | I11: VSC | J11: Lsat | K11: Lcom | L11: Lsat | M11: Lcom | N11: Lsat
B12: w % | F12: =x_ps(F6,F9) -> 0.9606871592 | J12: =x_ps(J6,J9) -> 0 | L12: =x_ps(L6,L9) -> 0 | N12: =x_ps(N6,N9) -> 0
B13: s(Vsat) [kJ/kg/K] | C13: =sV_p(C6) -> 5.71152139 | D13: =sV_p(D6) -> 5.71152139 | E13: =sV_p(E6) -> 6.339164377 | F13: =sV_p(F6) -> 6.706983725 | G13: 6.706983725 | H13: 7.126856391 | I13: 7.358806641 | J13: 7.358806641 | K13: 7.126856391 | L13: 7.126856391 | M13: 6.339164377 | N13: 6.339164377
B14: s(Lsat) [kJ/kg/K] | C14: =sL_p(C6) -> 3.247846428 | D14: =sL_p(D6) -> 3.247846428 | E14: 2.447023908 | F14: 1.992083137 | G14: 1.992083137 | H14: 1.530098201 | I14: 1.302560174 | J14: 1.302560174 | K14: 1.530098201 | L14: 1.530098201 | M14: 2.447023908 | N14: 2.447023908
E15: y1 | F15: =(N8-M8)/(E8-M8) -> 0.1686859316
E16: y2 | F16: =(L8-K8+F15*(K8-L8))/(H8-K8) -> 0.02790697821
B18: W23/F [kJ/kg] | C18: =E8-D8 -> -375.823696
B19: W34/F [kJ/kg] | C19: =(1-F15)*(F8-E8) -> -173.134061
B20: W56/F [kJ/kg] | C20: =(1-F15)*(H8-G8) -> -300.9131232
B21: W67/F [kJ/kg] | C21: =(1-F15-F16)*(I8-H8) -> -128.2740942
B22: W89/F [kJ/kg] | C22: =(1-F15-F16)*(K8-J8) -> 0.09250476357 | E22: Wneto/F [kJ/kg] | F22: =SUM(C18:C24) -> -968.8506538
B23: W1011/F [kJ/kg] | C23: =(1-F15)*(M8-L8) -> 1.600815427 | E23: Qneto/F [kJ/kg] | F23: =C25+C26 -> 2925.960464
B24: W121/F [kJ/kg] | C24: =C8-N8 -> 7.601000429
B25: Q12/F [kJ/kg] | C25: =D8-C8 -> 2349.410623
B26: Q45/F [kJ/kg] | C26: =(1-F15)*(G8-F8) -> 576.5498403 | E26: Q [kJ/h] | F26: =-'Ciclo-Gas'!H82 -> 1032656654
B27: Q78/F [kJ/kg] | C27: =(1-F15-F16)*(J8-I8) -> -1957.10981 | E27: F [kg/h] | F27: =F26/F23 -> 352929.1209
E28: W [kJ/h] | F28: =F22*F27 -> -341935609.5
E30: W [MW] | F30: =F28/3.6/10^6 -> -94.98211374
E32: Q condensador [kJ/h] | F32: =C27*F27 -> -690721044.7

Sheet TorreEnfriamiento
B4: P[atm] | C4: 1
B5: P[bar] | C5: 1.01325
C6: 15 | D6: 14 | E6: 16 | F6: 17 | G6: 18
C7: A | D7: B | E7: C | F7: D | G7: E
B8: T | C8: 25 | D8: 38 | E8: 20 | F8: 25 | G8: 35
B9: HR | C9: - | D9: - | E9: - | F9: 0.35 | G9: 0.9
B10: Y | C10: - | D10: - | E10: - | F10: =Y_THRP(F8,F9,C4) -> 0.006884307701 | G10: =Y_THRP(G8,G9,C4) -> 0.0327275419
B11: hAS [kJ kgAS-1] | C11: - | D11: - | E11: - | F11: =h_THRP(F8,F9,C4) -> 42.67830795 | G11: =h_THRP(G8,G9,C4) -> 119.1291447
B12: h [kJ /kgH2O ] | C12: =h_pt(C5,C8) -> 104.9292946 | D12: =h_pt(C5,D8) -> 159.2671429 | E12: =h_pt(C5,E8) -> 84.01305815 | F12: - | G12: -
B13: F [kg/s] | C13: =F21 -> 3531.000271 | D13: =C13 -> 3531.000271 | E13: =C18*(G10-F10) -> 66.75396992 | F13: =C18/F14 -> 2600.817076 | G13: =C18/G14 -> 2667.571045
B14: wAS | C14: 1 | D14: 1 | E14: 1 | F14: =1/(F10+1) -> 0.9931627619 | G14: =1/(G10+1) -> 0.9683096068
B15: wH2O | C15: 0 | D15: 0 | E15: 0 | F15: =1-F14 -> 0.006837238051 | G15: =1-G14 -> 0.03169039323
B17: FA/FAS D= | C17: =(F11+(G10-F10)*E12-G11)/(C12-D12) -> 1.366996855
B18: FAS D [kg/s]= | C18: =C13/C17 -> 2583.03467
E19: Q[kJ/h]= | F19: =-'Ciclo-VaporAgua'!F32 -> 690721044.7
E20: Q[kJ/s]= | F20: =F19/3600 -> 191866.9569
E21: FA[kg/s] = | F21: =F20/(D12-C12) -> 3531.000271
E23: Q[MW]= | F23: =F20/1000 -> 191.8669569

Sheet Resultados
A1: CICLO COMBINADO
C4: Combustible [t/h] | D4: 188.6324356
C6: Combustible [m3/h] | D6: ='Ciclo-Gas'!F27 -> 242293.9541 | F6: W [MW] Vapor | G6: ='Ciclo-VaporAgua'!F30 -> -94.98211374
C8: Combustible [kg/h] | D8: =D4*1000 -> 188632.4356 | F8: W [MW] Gas | G8: ='Ciclo-Gas'!H77 -> -905.0178863
C10: Combustible [kgmol/h] | D10: =D8/'Ciclo-Gas'!F25 -> 9774.656909
F11: W [MW] neto | G11: =ABS(G6+G8) -> 1000
C13: Aire Torre [kg/s] | D13: =TorreEnfriamiento!F13 -> 2600.817076 | F13: W [MW] Laguna Verde | G13: 1000
C16: Q neto [MW] | D16: ='Ciclo-Gas'!H80 -> 1973.477564 | F16: E = | G16: =ABS(G6+G8)/ABS(D16) -> 0.5067197207
F18: η= | G18: =1-(373)/'Ciclo-Gas'!D46 -> 0.8051583683
F20: E = | G20: =G16/G18 -> 0.6293416807
